fUSD/lending_fUSD_20260111
["ID","MTS","AMOUNT","RATE_DAILY","PERIOD"]
[401276479,1768094631578,3390.3717841,0.00012764,2]
[401276480,1768094631599,434.9682159,0.00012764,2]
[401276481,1768094631777,3825.34,0.00013259,2]
[401276482,1768094644231,-1399.130102,0.00013521,2]
[401276483,1768094644261,-150.0,0.00013588,2]
[401276484,1768094644290,-233.0,0.00013588,2]
[401276485,1768094663556,1000.0,0.00012,2]
[401276486,1768094672520,1000.0,0.00011962,2]
[401276487,1768094672577,1000.0,0.00011927,2]
[401276488,1768094672628,1000.0,0.00011898,2]
[401276489,1768094676841,197.94338915,0.00013514,2]
[401276490,1768094686899,197.94338915,0.00013514,2]
[401276491,1768094701181,300.0,0.00013588,2]
[401276492,1768094701218,1200.0,0.00013588,2]
[401276493,1768094701275,300.0,0.00013588,2]
[401276494,1768094704069,239.8630177,0.00013521,2]
[401276495,1768094704092,1815.8362023,0.00013521,2]
[401276496,1768094724455,1026.77520155,0.000108,2]
[401276497,1768094733318,1000.0,0.00011885,2]
[401276498,1768094733377,1000.0,0.00011997,2]
[401276499,1768094733429,1000.0,0.00011914,2]
[401276500,1768094733486,1000.0,0.00011919,2]
[401276501,1768094733539,1000.0,0.00011866,2]
[401276502,1768094759301,500.0,0.00013588,2]
[401276503,1768094759347,500.0,0.00013588,2]
[401276504,1768094761259,300.0,0.00013588,2]
[401276506,1768094792492,857.39859615,0.00011751,2]
[401276507,1768094792517,142.60140385,0.00011751,2]
[401276508,1768094792556,1000.0,0.00011783,2]
[401276509,1768094792593,1000.0,0.0001183,2]
[401276510,1768094792650,541.22505,0.00011966,2]
[401276511,1768094796004,1500.0,0.00011273,2]
[401276512,1768094808458,-250.0,0.00013602,2]
[401276513,1768094810915,796.3596526,0.00015,14]
[401276514,1768094811976,8960.19417875,0.00013549,2]
[401276515,1768094823339,539.81582125,0.00013602,2]
[401276516,1768094823362,3460.18417875,0.00013602,2]
[401276517,1768094825223,200.0,0.00013589,2]
[401276518,1768094828300,151.0,0.00013589,2]
[401276519,1768094828901,151.0,0.00013589,2]
[401276520,1768094830204,151.0,0.00013589,2]
[401276521,1768094830276,151.0,0.00013589,2]
[401276522,1768094830439,206.13,0.00013012,2]
[401276523,1768094830735,151.0,0.00013589,2]
[401276524,1768094831337,151.0,0.00013589,2]
[401276525,1768094831974,151.0,0.00013589,2]
[401276526,1768094832577,151.0,0.00013589,2]
[401276527,1768094833186,151.0,0.00013589,2]
[401276528,1768094833823,151.0,0.00013589,2]
[401276529,1768094834183,-250.0,0.00013649,2]
[401276530,1768094834457,151.0,0.00013589,2]
[401276531,1768094835059,151.0,0.00013589,2]
[401276532,1768094836202,151.0,0.00013589,2]
[401276533,1768094836840,151.0,0.00013589,2]
[401276534,1768094837480,151.0,0.00013589,2]
[401276535,1768094838083,151.0,0.00013589,2]
[401276536,1768094838684,151.0,0.00013589,2]
[401276537,1768094839800,151.0,0.00013589,2]
[401276538,1768094839944,503.5980868,0.00013589,2]
[401276539,1768094839996,500.0,0.00013589,2]
[401276540,1768094841143,151.0,0.00013589,2]
[401276541,1768094841192,500.0,0.00013589,2]
[401276542,1768094841237,151.0,0.00013589,2]
[401276543,1768094841423,500.0,0.00013589,2]
[401276544,1768094842020,500.0,0.00013589,2]
[401276545,1768094842663,500.0,0.00013589,2]
[401276546,1768094842980,302.0,0.00013589,2]
[401276547,1768094843288,500.0,0.00013589,2]
[401276548,1768094843913,500.0,0.00013589,2]
[401276549,1768094844550,500.0,0.00013589,2]
[401276550,1768094845204,500.0,0.00013589,2]
[401276551,1768094845881,472.8138264,0.00013589,2]
[401276552,1768094847158,151.0,0.00013589,2]
[401276553,1768094847766,151.0,0.00013589,2]
[401276554,1768094848380,151.0,0.00013589,2]
[401276555,1768094849020,151.0,0.00013589,2]
[401276556,1768094849296,1607.5980868,0.00013589,2]
[401276557,1768094849319,8246.9436751,0.00013589,2]
[401276558,1768094849723,151.0,0.00013589,2]
[401276559,1768094850347,151.0,0.00013589,2]
[401276560,1768094851745,151.0,0.00013589,2]
[401276561,1768094851980,900.0,0.00013649,2]
[401276562,1768094852031,151.0,0.00013589,2]
[401276563,1768094852179,151.0,0.00013589,2]
[401276564,1768094852801,98.0663249,0.00013589,2]
[401276565,1768094852831,52.9336751,0.00013589,2]
[401276566,1768094853072,151.0,0.00013589,2]
[401276567,1768094853954,151.0,0.00013589,2]
[401276568,1768094854045,151.0,0.00013589,2]
[401276569,1768094865859,-151.0,0.00013689,2]
[401276570,1768094866695,151.0,0.00013689,2]
[401276571,1768094879590,-300.0,0.00013697,2]
[401276572,1768094879619,-300.0,0.00013697,2]
[401276573,1768094895061,-509.39630906,0.00013698,2]
[401276574,1768094895090,-500.0,0.00013698,2]
[401276575,1768094895118,-500.0,0.00013698,2]
[401276576,1768094895146,-500.0,0.00013698,2]
[401276577,1768094895174,-501.1868976,0.00013698,2]
[401276578,1768094895202,-500.0,0.00013698,2]
[401276579,1768094895230,-483.79003433,0.00013698,2]
[401276580,1768094895258,-500.0,0.00013698,2]
[401276581,1768094895287,-500.0,0.00013698,2]
[401276582,1768094895315,-500.0,0.00013698,2]
[401276583,1768094895602,-509.32,0.00013698,2]
[401276584,1768094895753,1200.0,0.00013697,2]
[401276592,1768094964955,1000.0,0.00013698,2]
[401276593,1768094965999,825.56777337,0.00013698,2]
[401276595,1768095032006,-162.55,0.00013699,2]
[401276597,1768095032016,-812.79,0.00013699,2]
[401276598,1768095032027,-263.0,0.00013699,2]
[401276599,1768095032037,-2553.56540815,0.00013717,2]
[401276601,1768095032046,-268.42305266,0.00013736,2]
[401276603,1768095032056,-3825.34,0.00013755,2]
[401276605,1768095032066,-150.0,0.00013869,2]
[401276607,1768095032075,-1200.0,0.00013887,2]
[401276609,1768095032085,-300.0,0.00013887,2]
[401276610,1768095032094,-511.15337826,0.00013888,2]
[401276611,1768095032104,-500.0,0.00013888,2]
[401276612,1768095032113,-500.0,0.00013888,2]
[401276613,1768095032123,-207.07099855,0.00013888,2]
[401276614,1768095032442,-150.0,0.00013988,2]
[401276615,1768095032453,-998.13686081,0.00014,2]
[401276616,1768095032463,-1010.5,0.00014022,2]
[401276617,1768095032474,-166.04276169,0.00014031,2]
[401276618,1768095032483,-1000.0,0.00014063,2]
[401276619,1768095032492,-1000.0,0.00014064,2]
[401276620,1768095032502,-1021.76212161,0.0001409,2]
[401276621,1768095032512,-150.0,0.00014104,2]
[401276622,1768095032522,-1000.0,0.00014124,2]
[401276624,1768095032531,-150.0,0.00014131,2]
[401276625,1768095032540,-989.5,0.00014167,2]
[401276626,1768095032550,-1000.0,0.00014237,2]
[401276627,1768095032559,-3825.34,0.0001425,2]
[401276628,1768095032569,-1000.0,0.00014388,2]
[401276629,1768095032579,-10302.59707255,0.0001439,2]
[401276630,1768095032588,-3825.34,0.00014745,2]
[401276631,1768095032598,-200.0,0.00014778,2]
[401276632,1768095032612,-150.99,0.00014947,2]
[401276633,1768095032622,-150.0,0.00014947,2]
[401276634,1768095032632,-9999.99,0.00014948,2]
[401276635,1768095032642,-250.0,0.00015014,2]
[401276636,1768095032654,-317.74732338,0.00015014,2]
[401276637,1768095032672,-250.0,0.00015068,2]
[401276638,1768095032682,-195.0,0.00015068,2]
[401276639,1768095032692,-2522.28502959,0.00015068,2]
[401276640,1768095032702,-2500.0,0.00015068,2]
[401276641,1768095032711,-253.11353836,0.00015068,2]
[401276642,1768095032721,-300.0,0.00015216,2]
[401276643,1768095032731,-3825.34,0.0001524,2]
[401276644,1768095032740,-1680.0,0.00015276,2]
[401276645,1768095032750,-150.1,0.00015465,2]
[401276646,1768095032760,-272.5711073,0.00015465,2]
[401276647,1768095032771,-9854.5417619,0.00015571,2]
[401276648,1768095032781,-3825.34,0.00015735,2]
[401276649,1768095032791,-154.0,0.00016068,2]
[401276650,1768095032801,-3825.34,0.00016231,2]
[401276651,1768095032810,-500.0,0.00016438,2]
[401276652,1768095032819,-500.0,0.00016438,2]
[401276653,1768095032829,-500.0,0.00016438,2]
[401276654,1768095032838,-500.0,0.00016438,2]
[401276655,1768095032848,-500.0,0.00016438,2]
[401276656,1768095032857,-500.0,0.00016438,2]
[401276657,1768095032866,-500.0,0.00016438,2]
[401276658,1768095032876,-500.0,0.00016438,2]
[401276659,1768095032885,-500.0,0.00016438,2]
[401276660,1768095032895,-500.0,0.00016438,2]
[401276661,1768095032904,-500.0,0.00016438,2]
[401276662,1768095032914,-500.0,0.00016438,2]
[401276663,1768095032925,-500.0,0.00016438,2]
[401276664,1768095032934,-505.09966066,0.00016438,2]
[401276665,1768095032944,-500.0,0.00016438,2]
[401276666,1768095032952,-500.0,0.00016438,2]
[401276667,1768095032962,-500.0,0.00016438,2]
[401276668,1768095032972,-500.0,0.00016438,2]
[401276669,1768095032983,-500.0,0.00016438,2]
[401276670,1768095032992,-5207.80037115,0.00016438,2]
[401276671,1768095033004,-273.84430536,0.00016438,2]
[401276672,1768095033016,-507.00532349,0.00016438,2]
[401276673,1768095033026,-417.99467651,0.00016726,2]
[401276674,1768095033038,-3407.34532349,0.00016726,2]
[401276675,1768095033048,-250.0,0.00017,2]
[401276676,1768095033057,-244.7,0.00017139,2]
[401276677,1768095033066,-500.0,0.00017205,2]
[401276678,1768095033076,-1536.45935552,0.00017221,2]
[401276679,1768095033091,-1831.0046154,0.00017221,2]
[401276680,1768095033102,-457.87602908,0.00017221,2]
[401276681,1768095033111,-106.13335373,0.000175,2]
[401276682,1768095033123,-269.84867698,0.000175,2]
[401276683,1768095038110,-435.4499165,0.000175,2]
[401276684,1768095038125,-493.17330366,0.000175,2]
[401276686,1768095038136,-583.72879,0.000175,2]
[401276688,1768095038231,-111.66595913,0.000175,2]
[401276689,1768095038242,-1893.86757415,0.00017553,2]
[401276690,1768095038780,-860.85068214,0.00017553,2]
[401276691,1768095038793,-6955.0000005,0.00017553,2]
[401276692,1768095038806,-144.82350511,0.00017553,2]
[401276693,1768095038816,-4282.54301635,0.000177,2]
[401276694,1768095038826,-3825.34,0.00017716,2]
[401276695,1768095038836,-294.0,0.00017737,2]
[401276696,1768095038846,-244.7,0.00017854,2]
[401276697,1768095038857,-4567.2580701,0.000179,2]
[401276698,1768095038868,-4619.27548072,0.000179,2]
[401276699,1768095038878,-481.10083508,0.000179,2]
[401276700,1768095038887,-215.1054572,0.000179,2]
[401276701,1768095038896,-215.1054572,0.000179,2]
[401276702,1768095038906,-1093.74,0.0001799,2]
[401276703,1768095038916,-1093.74,0.0001799,2]
[401276704,1768095038928,-1093.74,0.0001799,2]
[401276705,1768095038938,-1093.74,0.0001799,2]
[401276706,1768095038948,-1093.74,0.0001799,2]
[401276707,1768095038957,-1213.79,0.00018,7]
[401276708,1768095038969,-2935.49812889,0.00018,2]
[401276716,1768095040279,-288.68052009,0.00017999,2]
[401276717,1768095040535,-151.0,0.0001645,2]
[401276718,1768095040545,-151.0,0.0001645,2]
[401276719,1768095040555,-214.69428673,0.00017999,2]
[401276720,1768095040564,-400.45468242,0.00017999,2]
[401276721,1768095040574,-27849.87999343,0.00018,2]
[401276725,1768095044788,-13405.0,0.00018,2]
[401276726,1768095044800,-979.56669457,0.00018,2]
[401276729,1768095046036,-342.48238518,0.00018,2]
[401276730,1768095046047,-9523.14296502,0.00018,2]
[401276731,1768095046060,-1093.57675225,0.00018,2]
[401276732,1768095046337,-1543.25840101,0.00018,2]
[401276733,1768095060431,321.65080286,0.000273,120]
[401276734,1768095066179,500.0,0.00013588,2]
[401276735,1768095066367,500.0,0.00013588,2]
[401276736,1768095066701,500.0,0.00013588,2]
[401276737,1768095067338,500.0,0.00013588,2]
[401276738,1768095067416,500.0,0.00013588,2]
[401276739,1768095067651,500.0,0.00013588,2]
[401276740,1768095067995,500.0,0.00013588,2]
[401276741,1768095068320,500.0,0.00013588,2]
[401276742,1768095068632,500.0,0.00013588,2]
[401276743,1768095068975,500.0,0.00013588,2]
[401276744,1768095069793,500.0,0.00013588,2]
[401276745,1768095070099,500.0,0.00013588,2]
[401276746,1768095070139,500.0,0.00013588,2]
[401276747,1768095070206,500.0,0.00013588,2]
[401276748,1768095070255,500.0,0.00013588,2]
[401276749,1768095070312,500.0,0.00013588,2]
[401276750,1768095070357,500.0,0.00013588,2]
[401276751,1768095070411,500.0,0.00013588,2]
[401276752,1768095070982,500.0,0.00013588,2]
[401276753,1768095071020,500.0,0.00013588,2]
[401276754,1768095071064,0.01,0.00013588,2]
[401276755,1768095071090,499.99,0.00013588,2]
[401276756,1768095071132,500.0,0.00013588,2]
[401276757,1768095071174,500.0,0.00013588,2]
[401276758,1768095071224,500.0,0.00013588,2]
[401276759,1768095071270,500.0,0.00013588,2]
[401276760,1768095071320,500.0,0.00013588,2]
[401276761,1768095071363,500.0,0.00013588,2]
[401276762,1768095071402,500.0,0.00013588,2]
[401276763,1768095071444,500.0,0.00013588,2]
[401276764,1768095071487,500.0,0.00013588,2]
[401276765,1768095071527,500.0,0.00013588,2]
[401276766,1768095071574,500.0,0.00013588,2]
[401276767,1768095071613,500.0,0.00013588,2]
[401276768,1768095071650,500.0,0.00013588,2]
[401276769,1768095071690,500.0,0.00013588,2]
[401276770,1768095071734,500.0,0.00013588,2]
[401276771,1768095071773,500.0,0.00013588,2]
[401276772,1768095071818,500.0,0.00013588,2]
[401276773,1768095071857,500.0,0.00013588,2]
[401276774,1768095071931,500.0,0.00013588,2]
[401276775,1768095072311,0.02,0.00013588,2]
[401276776,1768095072340,499.98,0.00013588,2]
[401276777,1768095072386,453.48154741,0.00013588,2]
[401276778,1768095072426,500.0,0.00013588,2]
[401276780,1768095123286,500.0,0.00013588,2]
[401276781,1768095123327,500.0,0.00013588,2]
[401276782,1768095123368,500.0,0.00013588,2]
[401276783,1768095123411,500.0,0.00013588,2]
[401276784,1768095123454,500.0,0.00013588,2]
[401276785,1768095123495,500.0,0.00013588,2]
[401276786,1768095123534,500.0,0.00013588,2]
[401276787,1768095123574,500.0,0.00013588,2]
[401276788,1768095123616,500.0,0.00013588,2]
[401276789,1768095123655,500.0,0.00013588,2]
[401276790,1768095123695,500.0,0.00013588,2]
[401276791,1768095123740,500.0,0.00013588,2]
[401276792,1768095123782,500.0,0.00013588,2]
[401276793,1768095123825,500.0,0.00013588,2]
[401276794,1768095123870,500.0,0.00013588,2]
[401276795,1768095123910,500.0,0.00013588,2]
[401276796,1768095123959,500.0,0.00013588,2]
[401276797,1768095124003,500.0,0.00013588,2]
[401276798,1768095124044,500.0,0.00013588,2]
[401276799,1768095124088,500.0,0.00013588,2]
[401276800,1768095124127,0.01,0.00013588,2]
[401276801,1768095124155,499.99,0.00013588,2]
[401276802,1768095124199,500.0,0.00013588,2]
[401276803,1768095149717,160.88627252,0.00013698,2]
[401276804,1768095197568,500.0,0.00013599,2]
[401276805,1768095213154,151.36325258,0.00013588,2]
[401276806,1768095307120,5694.0,0.00013945,2]
[401276809,1768095715575,172.55,0.00012799,2]
[401276819,1768095859839,-150.0,0.00014544,2]
[401276820,1768095859866,-270.0,0.00014545,2]
[401276821,1768095859892,-172.55332583,0.00014545,2]
[401276822,1768095859919,-1652.526,0.00014545,2]
[401276823,1768095859944,-10000.01,0.00014545,2]
[401276824,1768095859968,-3867.179,0.00014545,2]
[401276825,1768095859993,-2500.0,0.00014545,2]
[401276826,1768095860017,-3491.1977,0.00014545,2]
[401276827,1768095860042,-236.6425,0.00014545,2]
[401276828,1768095860069,-151.0,0.00014636,2]
[401276829,1768095860093,-151.0,0.00014636,2]
[401276830,1768095860118,-151.0,0.00014636,2]
[401276831,1768095860144,-151.0,0.00014636,2]
[401276832,1768095860172,-151.0,0.00014636,2]
[401276833,1768095860197,-151.0,0.00014636,2]
[401276834,1768095860223,-160.33550966,0.00014636,2]
[401276835,1768095860247,-500.0,0.00014644,2]
[401276836,1768095860270,-500.0,0.00014644,2]
[401276837,1768095860296,-521.3748431,0.00014644,2]
[401276838,1768095860325,-500.0,0.00014644,2]
[401276839,1768095860352,-500.0,0.00014644,2]
[401276840,1768095860382,-500.0,0.00014644,2]
[401276841,1768095860409,-500.0,0.00014644,2]
[401276842,1768095860439,-500.0,0.00014644,2]
[401276843,1768095860469,-245.34815474,0.00014644,2]
[401276844,1768095860498,-166826.83296667,0.00014645,2]
[401276866,1768096232095,-150.0,0.00014544,2]
[401276867,1768096232105,-24119.73528821,0.00014545,2]
[401276868,1768096232116,-16608.65042895,0.00014545,2]
[401276870,1768096232128,-4489.70788284,0.00014545,2]
[401276872,1768096232138,-2500.0,0.00014545,2]
[401276873,1768096232147,-7808.72970326,0.00014572,2]
[401276875,1768096232158,-210.50887495,0.00014572,2]
[401276877,1768096232167,-210.50887495,0.00014572,2]
[401276878,1768096232176,-392.16601396,0.00014572,2]
[401276879,1768096232185,-581.63153419,0.00014572,2]
[401276880,1768096232194,-205.55461254,0.00014645,2]
[401276881,1768096232205,-1238.93284746,0.00014645,2]
[401276882,1768096232223,-661.42405583,0.00014645,2]
[401276883,1768096232254,-3413.70522264,0.00014645,2]
[401276884,1768096232265,-2740.89999996,0.00014645,2]
[401276885,1768096232278,-815.6847596,0.00014645,2]
[401276886,1768096232290,-556.64674786,0.00014645,2]
[401276887,1768096232302,-346.84803172,0.00014645,2]
[401276888,1768096232318,-6530.29967932,0.00014645,2]
[401276889,1768096232330,-1060.77904205,0.00014645,2]
[401276890,1768096232343,-888.55074505,0.00014645,2]
[401276891,1768096232379,-344.17171453,0.00014645,2]
[401276892,1768096232394,-614.3744897,0.00014645,2]
[401276893,1768096232406,-1573.12997765,0.00014645,2]
[401276910,1768096238222,-510.0107198,0.00014645,2]
[401276911,1768096238235,-20908.2524505,0.00014645,2]
[401276912,1768096238246,-2036.00610861,0.00014645,2]
[401276913,1768096238257,-18429.02484211,0.00014645,2]
[401276914,1768096238329,-568.40474227,0.00014645,2]
[401276915,1768096238383,-519.47545875,0.00014645,2]
[401276916,1768096238397,-620.0000001,0.00014645,2]
[401276917,1768096238437,-2046.94109492,0.00014645,2]
[401276918,1768096238494,-5888.10906439,0.00014645,2]
[401276920,1768096238507,-583.25931195,0.00014645,2]
[401276921,1768096238518,-400.66838897,0.00014645,2]
[401276925,1768096240844,-953.7997101,0.00014645,2]
[401276926,1768096240860,-768.71294345,0.00014645,2]
[401276930,1768096243806,-785.0,0.00014645,2]
[401276931,1768096244642,-316.16713008,0.00014645,2]
[401276932,1768096244654,-1082.03076542,0.00014645,2]
[401276933,1768096244665,-4248.9280555,0.00014645,2]
[401276941,1768096246406,-9748.67742255,0.00014645,2]
[401276942,1768096246427,-2180.0,0.00014645,2]
[401276969,1768096368745,-1322.021,0.00014156,2]
[401276987,1768096558030,300.0,0.00027,120]
[401276988,1768096608710,450.0,0.00027,120]
[401276989,1768096677595,-385.59578952,0.00014056,2]
[401276990,1768096794672,3333.37847991,0.0002,30]
[401276997,1768096886176,2673.55,0.00014033,2]
[401277385,1768097232151,200.0,0.00014056,2]
[401277386,1768097232653,-2.93531048,0.00014056,2]
[401277387,1768097232677,-272.88691735,0.00014074,2]
[401277388,1768097237076,-27.11308265,0.00014074,2]
[401277389,1768097237099,-195.0,0.00014092,2]
[401277390,1768097237124,-85.3654268,0.00014127,2]
[401277391,1768097239487,500.0,0.00014056,2]
[401277392,1768097244421,200.0,0.00014056,2]
[401277393,1768097252638,-279.948024,0.00014056,2]
[401277394,1768097253117,-500.0,0.000141,2]
[401277395,1768097253148,-164.6345732,0.00014127,2]
[401277396,1768097253886,-195.0,0.00014189,2]
[401277397,1768097262596,-150.0,0.0001417,2]
[401277398,1768097262621,-141.12945779,0.0001417,2]
[401277399,1768097264811,-61.81880211,0.0001417,2]
[401277400,1768097265164,-389.38186034,0.0001417,2]
[401277401,1768097269362,-110.61813966,0.0001417,2]
[401277402,1768097269385,-175.26529578,0.0001417,2]
[401277403,1768097270475,-324.73470422,0.0001417,2]
[401277404,1768097271694,-299.84871669,0.00014199,2]
[401277405,1768097273041,-166.78560955,0.00014199,2]
[401277406,1768097274755,-159.04489093,0.00014199,2]
[401277407,1768097276295,-196.98927669,0.00014199,2]
[401277408,1768097281358,-20.33150614,0.00014199,2]
[401277409,1768097281382,-150.0,0.00014199,2]
[401277410,1768097281404,-129.66849386,0.00014199,2]
[401277411,1768097284926,-20.33150614,0.00014199,2]
[401277412,1768097284949,-246.35655401,0.00014199,2]
[401277413,1768097287444,3893.54,0.00013699,2]
[401277414,1768097287534,-162.6145031,0.00014199,2]
[401277415,1768097289648,-91.02894289,0.00014199,2]
[401277416,1768097289670,-71.58556021,0.00014199,2]
[401277417,1768097291204,-232.0,0.00014199,2]
[401277418,1768097291680,-196.41443979,0.00014199,2]
[401277419,1768097313440,488.64999749,0.00014153,2]
[401277420,1768097316248,-150.0,0.00014225,2]
[401277421,1768097316273,-10.94997929,0.00014225,2]
[401277422,1768097319415,-489.05002071,0.00014225,2]
[401277423,1768097319443,-213.58765748,0.00014225,2]
[401277424,1768097321497,-153.891643,0.00014225,2]
[401277425,1768097380508,1852.42,0.00013478,2]
[401277426,1768097401299,385.5957,0.00013974,2]
[401277427,1768097412736,-132.52069952,0.00014225,2]
[401277428,1768097412759,-160.48338742,0.00014234,2]
[401277451,1768097432329,-34.51661258,0.00014234,2]
[401277453,1768097432340,-300.0,0.00014243,2]
[401277455,1768097432350,-577.17589764,0.00014243,2]
[401277457,1768097432361,-622.82410236,0.00014243,2]
[401277459,1768097432371,-324.9765641,0.00014243,2]
[401277461,1768097432381,-500.0,0.00014244,2]
[401277463,1768097432391,-381.66225809,0.00014244,2]
[401277464,1768097432400,-442.54393192,0.00014244,2]
[401277465,1768097432412,-630.31,0.00014244,2]
[401277466,1768097432435,-478.31135074,0.00014244,2]
[401277467,1768097432450,-1551.16528266,0.00014244,2]
[401277468,1768097432459,-1551.16528266,0.00014244,2]
[401277469,1768097432468,-1551.16528266,0.00014244,2]
[401277470,1768097432478,-205.31870458,0.00014244,2]
[401277471,1768097432494,-302.04407022,0.00014244,2]
[401277485,1768097438389,-1043.80250786,0.00014244,2]
[401277486,1768097438407,-1551.16528266,0.00014244,2]
[401277487,1768097438421,-1551.16528266,0.00014244,2]
[401277488,1768097438431,-1551.16528266,0.00014244,2]
[401277489,1768097438442,-1551.16528266,0.00014244,2]
[401277490,1768097438452,-1551.16528266,0.00014244,2]
[401277491,1768097438461,-1551.16528266,0.00014244,2]
[401277492,1768097438470,-1551.16528266,0.00014244,2]
[401277493,1768097438480,-1383.83977745,0.00014244,2]
[401277494,1768097438492,-167.32550521,0.00014244,2]
[401277495,1768097438501,-332.31762045,0.00014244,2]
[401277496,1768097438546,-1218.84766221,0.00014244,2]
[401277497,1768097438555,-1551.16528266,0.00014244,2]
[401277498,1768097438564,-1551.16528266,0.00014244,2]
[401277499,1768097438573,-1551.16528266,0.00014244,2]
[401277500,1768097438583,-1551.16528266,0.00014244,2]
[401277501,1768097438593,-1551.16528266,0.00014244,2]
[401277502,1768097438602,-1551.16528266,0.00014244,2]
[401277503,1768097438611,-1551.16528266,0.00014244,2]
[401277504,1768097438620,-1551.16528266,0.00014244,2]
[401277505,1768097438630,-1551.16528266,0.00014244,2]
[401277506,1768097438639,-1551.16528266,0.00014244,2]
[401277507,1768097438648,-1551.16528266,0.00014244,2]
[401277508,1768097438657,-1551.16528266,0.00014244,2]
[401277509,1768097438666,-1551.16528266,0.00014244,2]
[401277510,1768097438675,-1551.16528266,0.00014244,2]
[401277511,1768097438684,-1551.16528266,0.00014244,2]
[401277512,1768097438694,-1551.16528266,0.00014244,2]
[401277513,1768097438704,-1551.16528266,0.00014244,2]
[401277514,1768097438715,-1551.16528266,0.00014244,2]
[401277515,1768097438725,-1551.16528266,0.00014244,2]
[401277516,1768097438735,-1497.39155287,0.00014244,2]
[401277517,1768097438746,-1497.39155287,0.00014244,2]
[401277518,1768097438756,-1497.39155287,0.00014244,2]
[401277520,1768097438766,-1497.39155287,0.00014244,2]
[401277521,1768097438776,-1497.39155287,0.00014244,2]
[401277523,1768097438786,-1497.39155287,0.00014244,2]
[401277525,1768097438795,-1497.39155287,0.00014244,2]
[401277527,1768097438805,-1497.39155287,0.00014244,2]
[401277529,1768097438815,-1497.39155287,0.00014244,2]
[401277531,1768097438824,-1497.39155287,0.00014244,2]
[401277533,1768097438833,-1497.39155287,0.00014244,2]
[401277535,1768097438843,-1497.39155287,0.00014244,2]
[401277537,1768097438853,-1497.39155287,0.00014244,2]
[401277539,1768097438862,-1497.39155287,0.00014244,2]
[401277541,1768097438873,-500.0,0.00014244,2]
[401277543,1768097438882,-500.0,0.00014244,2]
[401277545,1768097438892,-500.0,0.00014244,2]
[401277547,1768097438904,-500.0,0.00014244,2]
[401277549,1768097438915,-390.80410641,0.00014244,2]
[401277551,1768097438926,-1497.39155286,0.00014244,2]
[401277553,1768097438936,-499.09019836,0.00014244,2]
[401277555,1768097438946,-11318.86009448,0.00014245,2]
[401277557,1768097438959,-1295.24488642,0.00014245,2]
[401277560,1768097438971,-434.38244978,0.00014245,2]
[401277562,1768097438983,-896.94,0.00014245,2]
[401277564,1768097438995,-15472.7958671,0.00014245,2]
[401277566,1768097439007,-10319.3334292,0.00014245,2]
[401277569,1768097439019,-551.09530478,0.00014245,2]
[401277577,1768097440818,-1.7e-07,0.00014245,2]
[401277578,1768097440830,-316.218489,0.00014245,2]
[401277579,1768097440841,-418.54789703,0.00014245,2]
[401277580,1768097440852,-958976.58158204,0.00014245,2]
[401277581,1768097440862,-1200.0,0.00014253,2]
[401277582,1768097440872,-843.0,0.00014254,2]
[401277583,1768097440882,-162.20729527,0.00014254,2]
[401277584,1768097440891,-150.0,0.00014254,2]
[401277585,1768097440901,-500.0,0.00014254,2]